bitfinex/quotes_BTCUSD_20251214
["timestamp","ask_amount","ask_price","bid_price","bid_amount"]
[1765748011802,0.22774892,88594.0,88592.0,0.02355]
[1765748012008,0.22574892,88594.0,88592.0,0.02355]
[1765748012210,0.22574892,88594.0,88592.0,0.02255]
[1765748013017,0.22774892,88594.0,88592.0,0.02255]
[1765748013219,0.002,88594.0,88592.0,0.02255]
[1765748013419,0.002,88594.0,88593.0,0.02777]
[1765748014142,0.002,88594.0,88593.0,0.05032]
[1765748014943,0.01128731,88595.0,88593.0,0.05132]
[1765748015311,0.002,88594.0,88593.0,0.05132]
[1765748016074,0.01128731,88595.0,88593.0,0.05132]
[1765748016398,0.01328731,88595.0,88593.0,0.05032]
[1765748016655,0.01128731,88595.0,88593.0,0.05132]
[1765748017099,0.01128731,88595.0,88594.0,0.02255]
[1765748018660,0.01328731,88595.0,88594.0,0.02255]
[1765748018876,0.01328731,88595.0,88594.0,0.02355]
[1765748019394,0.01328731,88595.0,88594.0,0.001]
[1765748025540,0.01328731,88595.0,88594.0,0.03883]
[1765748025786,0.002,88595.0,88594.0,0.03883]
[1765748030064,0.002,88595.0,88594.0,0.001]
[1765748042797,0.01328782,88595.0,88594.0,0.001]
[1765748043775,0.01328782,88595.0,88594.0,0.27849892]
[1765748044114,0.01328782,88595.0,88594.0,0.28011179]
[1765748051783,0.01328782,88595.0,88594.0,0.25567179]
[1765748051962,0.01328782,88595.0,88594.0,0.22836179]
[1765748052361,0.23903419,88595.0,88594.0,0.00261287]
[1765748052572,0.01328782,88595.0,88594.0,0.00261287]
[1765748053159,0.23903419,88595.0,88594.0,0.00261287]
[1765748053360,0.23903419,88595.0,88594.0,0.001]
[1765748053621,0.35140182,88595.0,88594.0,0.001]
[1765748058502,0.23903419,88595.0,88594.0,0.001]
[1765748059333,0.25683419,88595.0,88594.0,0.001]
[1765748070770,0.03108782,88595.0,88594.0,0.001]
[1765748072444,0.25683419,88595.0,88594.0,0.001]
[1765748072741,0.03108782,88595.0,88594.0,0.001]
[1765748076014,0.01328782,88595.0,88594.0,0.05490287]
[1765748076219,0.002,88595.0,88594.0,0.05490287]
[1765748076416,0.002,88595.0,88594.0,0.001]
[1765748077884,0.01328833,88595.0,88594.0,0.001]
[1765748078761,0.12565596,88595.0,88594.0,0.001]
[1765748081534,0.01328833,88595.0,88594.0,0.001]
[1765748082726,0.01328833,88595.0,88594.0,0.22674892]
[1765748082960,0.03108833,88595.0,88594.0,0.001]
[1765748088837,0.01328833,88595.0,88594.0,0.001]
[1765748089044,0.002,88595.0,88594.0,0.001]
[1765748089541,0.002,88595.0,88594.0,0.22674892]
[1765748092900,0.01328693,88595.0,88594.0,0.22674892]
[1765748093753,0.01328693,88595.0,88594.0,0.001]
[1765748098260,0.01328693,88595.0,88594.0,0.0161]
[1765748098501,0.002,88595.0,88594.0,0.03934]
[1765748098699,0.002,88595.0,88594.0,0.06352776]
[1765748102254,0.002,88595.0,88594.0,0.00261287]
[1765748102977,0.002,88595.0,88594.0,0.001]
[1765748107246,0.11436763,88595.0,88594.0,0.001]
[1765748107444,0.40506763,88595.0,88594.0,0.001]
[1765748107735,0.41635584,88595.0,88594.0,0.001]
[1765748107916,0.30398821,88595.0,88594.0,0.001]
[1765748108151,0.41635584,88595.0,88594.0,0.001]
[1765748110532,0.43415584,88595.0,88594.0,0.001]
[1765748111333,0.41635584,88595.0,88594.0,0.001]
[1765748111544,0.43415584,88595.0,88594.0,0.001]
[1765748111997,0.32178821,88595.0,88594.0,0.001]
[1765748113436,0.002,88595.0,88594.0,0.03934]
[1765748115188,0.002,88595.0,88594.0,0.06352776]
[1765748115448,0.002,88595.0,88594.0,0.17592776]
[1765748116027,0.002,88595.0,88594.0,0.17492776]
[1765748116231,0.01128464,88616.0,88612.0,0.2369866]
[1765748117665,0.01128464,88616.0,88613.0,0.01128502]
[1765748118198,0.01428464,88616.0,88613.0,0.01128502]
[1765748118563,0.23697757,88616.0,88613.0,0.01128502]
[1765748118759,0.01128489,88614.0,88610.0,0.23699332]
[1765748119027,0.01128489,88614.0,88613.0,0.001]
[1765748120149,0.23997757,88616.0,88613.0,0.001]
[1765748121096,0.01128553,88609.0,88605.0,0.01128604]
[1765748121231,0.01128553,88609.0,88605.0,0.01136886]
[1765748121232,0.01128566,88608.0,88605.0,0.01136886]
[1765748121434,0.01128566,88608.0,88605.0,0.03460886]
[1765748121854,0.2257158,88607.0,88605.0,0.02332282]
[1765748122042,0.2257158,88607.0,88605.0,8.282e-05]
[1765748122582,0.2257158,88607.0,88605.0,0.00108282]
[1765748123843,0.2257158,88607.0,88605.0,8.282e-05]
[1765748124272,0.2267158,88607.0,88605.0,0.00108282]
[1765748124474,0.2277158,88607.0,88605.0,0.00108282]
[1765748127369,0.002,88607.0,88606.0,0.05215]
[1765748128042,0.002,88607.0,88606.0,0.27786834]
[1765748128252,0.01128528,88611.0,88607.0,0.01128579]
[1765748128410,0.01128528,88611.0,88610.0,0.11310746]
[1765748129632,0.01128515,88612.0,88610.0,0.11310746]
[1765748131066,0.002,88611.0,88610.0,0.11310746]
[1765748131466,0.01128515,88612.0,88610.0,0.11310746]
[1765748131950,0.002,88612.0,88609.0,0.01128553]
[1765748132178,0.01128489,88614.0,88611.0,0.02681]
[1765748132390,0.01128489,88614.0,88613.0,0.01532]
[1765748132804,0.01128566,88608.0,88605.0,8.282e-05]
[1765748134448,0.01228566,88608.0,88605.0,0.00208282]
[1765748134656,0.01328566,88608.0,88605.0,0.00208282]
[1765748136081,0.22571834,88606.0,88605.0,0.00208282]
[1765748136264,0.23900016,88608.0,88605.0,0.00208282]
[1765748136844,0.01128566,88608.0,88605.0,8.282e-05]
[1765748137047,0.001,88606.0,88605.0,0.01136886]
[1765748137249,0.002,88606.0,88605.0,0.01336886]
[1765748137655,0.23697758,88616.0,88611.0,0.01128528]
[1765748137856,0.01128489,88614.0,88609.0,0.01128553]
[1765748138063,0.01128515,88612.0,88609.0,0.01128553]
[1765748140510,0.01328515,88612.0,88609.0,0.01228553]
[1765748143836,0.2389906,88612.0,88609.0,0.001]
[1765748144005,0.22570815,88610.0,88609.0,0.001]
[1765748145383,0.01128566,88608.0,88605.0,0.01298173]
[1765748145936,0.01128566,88608.0,88605.0,0.00169569]
[1765748146553,0.01228566,88608.0,88605.0,0.00369569]
[1765748146755,0.01328566,88608.0,88605.0,0.00369569]
[1765748146974,0.2257158,88607.0,88605.0,0.00369569]
[1765748147147,0.01328566,88608.0,88605.0,0.00369569]
[1765748147531,0.002,88608.0,88607.0,0.02681]
[1765748148121,0.002,88608.0,88607.0,0.05108]
[1765748148324,0.001,88608.0,88607.0,0.05108]
[1765748148647,0.001,88608.0,88607.0,0.05208]
[1765748149061,0.0112854,88610.0,88607.0,0.06336579]
[1765748149261,0.0112854,88610.0,88608.0,0.02427]
[1765748149886,0.0112854,88610.0,88607.0,0.01249]
[1765748149887,0.2257107,88609.0,88607.0,0.01249]
[1765748150091,0.2257107,88609.0,88607.0,0.01149]
[1765748150296,0.2257107,88609.0,88607.0,0.01249]
[1765748150717,0.2257107,88609.0,88607.0,0.001]
[1765748151089,0.2267107,88609.0,88607.0,0.001]
[1765748151523,0.22571834,88606.0,88605.0,8.282e-05]
[1765748152751,0.22571834,88606.0,88605.0,0.00108282]
[1765748153156,0.22771834,88606.0,88605.0,0.00108282]
[1765748154427,0.34008597,88606.0,88605.0,0.00108282]
[1765748156717,0.51841834,88606.0,88605.0,0.00108282]
[1765748157102,0.75607528,88606.0,88605.0,0.00108282]
[1765748157254,0.70514436,88606.0,88605.0,0.00108282]
[1765748157461,0.71569065,88606.0,88605.0,1e-08]
[1765748157663,0.22582928,88563.0,88561.0,0.11310746]
[1765748157862,0.22582794,88563.0,88561.0,0.11480315]
[1765748158243,0.01129126,88564.0,88561.0,0.11480315]
[1765748158443,0.01129126,88564.0,88561.0,0.1260948]
[1765748158574,0.01129101,88566.0,88562.0,0.01129152]
[1765748159494,0.001,88564.0,88562.0,0.01129152]
[1765748160018,0.001,88564.0,88562.0,0.01229152]
[1765748160377,0.22582794,88563.0,88562.0,0.001]
[1765748161168,0.33819557,88563.0,88562.0,0.001]
[1765748161321,0.33819557,88563.0,88562.0,0.002]
[1765748161849,0.33819557,88563.0,88562.0,0.001]
[1765748162091,0.22682794,88563.0,88562.0,0.001]
[1765748162637,0.22882794,88563.0,88562.0,0.001]
[1765748162849,0.003,88563.0,88562.0,0.04281287]
[1765748163565,0.003,88563.0,88562.0,0.05838532]
[1765748163895,0.005,88563.0,88562.0,0.05938532]
[1765748164467,0.003,88563.0,88562.0,0.06539591]
[1765748164739,0.003,88563.0,88562.0,0.06639591]
[1765748165039,0.0178,88577.0,88574.0,0.01128999]
[1765748165564,0.01128923,88580.0,88576.0,0.01128973]
[1765748166016,0.01128948,88578.0,88575.0,0.03587986]
[1765748166257,0.003,88577.0,88575.0,0.03587986]
[1765748166463,0.01128948,88578.0,88575.0,0.03587986]
[1765748166956,0.01128948,88578.0,88576.0,0.001]
[1765748167763,0.002,88577.0,88576.0,0.001]
[1765748167964,0.002,88577.0,88576.0,0.22579479]
[1765748168180,0.0112891,88581.0,88578.0,0.01128948]
[1765748168383,0.0178,88582.0,88579.0,0.01128935]
[1765748169242,0.0178,88582.0,88579.0,0.03587935]
[1765748169446,0.011,88581.0,88579.0,0.03587935]
[1765748169618,0.011,88581.0,88580.0,0.2503746]
[1765748169812,0.011,88581.0,88580.0,0.2659846]
[1765748170616,0.01128833,88587.0,88584.0,0.01128872]
[1765748170799,0.01128846,88586.0,88581.0,0.0112891]
[1765748170994,0.01128846,88586.0,88582.0,0.01128897]
[1765748171499,0.01128846,88586.0,88583.0,0.01128884]
[1765748172362,0.01228846,88586.0,88584.0,0.001]
[1765748172533,0.01128846,88586.0,88584.0,0.001]
[1765748172735,0.01128833,88587.0,88584.0,0.01228872]
[1765748172980,0.001,88586.0,88584.0,0.01228872]
[1765748173540,0.001,88586.0,88584.0,0.001]
[1765748173720,0.001,88586.0,88583.0,0.01128884]
[1765748173922,0.001,88586.0,88583.0,0.01228884]
[1765748174268,0.01128833,88587.0,88583.0,0.01228884]
[1765748174423,0.001,88586.0,88585.0,0.01128859]
[1765748174619,0.01128821,88588.0,88585.0,0.01128859]
[1765748175141,0.001,88586.0,88585.0,0.01128859]
[1765748175343,0.01128821,88588.0,88585.0,0.01128859]
[1765748175547,0.001,88586.0,88585.0,0.01128859]
[1765748176350,0.001,88586.0,88583.0,0.01128884]
[1765748176558,0.23805809,88586.0,88582.0,0.01128897]
[1765748177159,0.01128897,88582.0,88579.0,0.00161287]
[1765748177294,0.01128897,88582.0,88579.0,0.01290222]
[1765748177689,0.01128872,88584.0,88580.0,0.01128923]
[1765748177917,0.01128872,88584.0,88582.0,0.001]
[1765748178124,0.01128859,88585.0,88582.0,0.001]
[1765748178519,0.01128859,88585.0,88581.0,0.23707083]
[1765748178720,0.001,88584.0,88583.0,0.01128884]
[1765748178880,0.002,88584.0,88583.0,0.01128884]
[1765748179086,0.001,88584.0,88583.0,0.01128884]
[1765748179401,0.001,88584.0,88583.0,0.23706579]
[1765748180039,0.01128833,88587.0,88582.0,0.01128897]
[1765748180204,0.01128859,88585.0,88582.0,0.01228897]
[1765748180404,0.01128846,88586.0,88582.0,0.01228897]
[1765748180601,0.001,88585.0,88582.0,0.01228897]
[1765748180816,0.01128846,88586.0,88582.0,0.01128897]
[1765748181007,0.001,88584.0,88583.0,0.001]
[1765748181478,0.01128846,88586.0,88583.0,0.001]
[1765748181688,0.001,88585.0,88582.0,0.01128897]
[1765748181866,0.01128846,88586.0,88582.0,0.01228897]
[1765748182279,0.001,88584.0,88582.0,0.01228897]
[1765748182661,0.001,88584.0,88583.0,0.22577695]
[1765748183279,0.001,88584.0,88583.0,0.22677695]
[1765748183516,0.01128821,88588.0,88584.0,0.01128872]
[1765748183739,0.01128821,88588.0,88585.0,0.01128859]
[1765748184113,0.23705012,88589.0,88586.0,0.01128846]
[1765748184298,0.23704455,88591.0,88586.0,0.01128846]
[1765748184722,0.2907,88598.0,88597.0,0.01128706]
[1765748184921,0.0178,88599.0,88597.0,0.01128706]
[1765748185744,0.0178,88599.0,88596.0,0.01128719]
[1765748185947,0.0178,88599.0,88596.0,0.23703087]
[1765748186307,0.0178,88602.0,88598.0,0.23702374]
[1765748186643,0.0178,88602.0,88599.0,0.0112868]
[1765748187476,0.0178,88602.0,88598.0,0.23702374]
[1765748187477,0.0178,88602.0,88598.0,0.23702447]
[1765748187702,0.03208642,88602.0,88599.0,0.0112868]
[1765748187912,0.02908642,88602.0,88599.0,0.0112868]
[1765748188044,0.22573108,88601.0,88599.0,0.001]
[1765748188256,0.22573108,88601.0,88599.0,0.002]
[1765748189439,0.22573108,88601.0,88599.0,0.001]
[1765748189673,0.01128719,88596.0,88593.0,0.01128757]
[1765748190087,0.01128719,88596.0,88591.0,0.01128782]
[1765748190829,0.01328719,88596.0,88591.0,0.01128782]
[1765748191055,0.01128731,88595.0,88591.0,0.01128782]
[1765748191489,0.01128744,88594.0,88590.0,0.01128795]
[1765748191711,0.01128808,88589.0,88584.0,0.02347872]
[1765748191928,0.23704438,88591.0,88587.0,0.01128833]
[1765748192697,0.01128782,88591.0,88587.0,0.01128833]
[1765748193288,0.01128782,88591.0,88590.0,0.001]
[1765748193722,0.01128782,88591.0,88588.0,0.01128821]
[1765748194082,0.01228782,88591.0,88588.0,0.01128821]
[1765748194644,0.01128782,88591.0,88588.0,0.01128821]
[1765748194847,0.01228782,88591.0,88588.0,0.01228821]
[1765748195057,0.01328782,88591.0,88588.0,0.01228821]
[1765748195612,0.23904672,88591.0,88588.0,0.001]
[1765748195813,0.22576166,88589.0,88588.0,0.001]
[1765748196020,0.01328782,88591.0,88588.0,0.001]
[1765748196650,0.01228782,88591.0,88587.0,0.01128833]
[1765748196845,0.01228782,88591.0,88588.0,0.01128821]
[1765748197118,0.001,88589.0,88588.0,0.01228821]
[1765748197454,0.01128782,88591.0,88588.0,0.01128821]
[1765748197675,0.0112877,88592.0,88589.0,0.01128808]
[1765748197839,0.001,88591.0,88589.0,0.23704946]
[1765748198247,0.001,88591.0,88589.0,0.25970946]
[1765748198712,0.001,88591.0,88590.0,0.02266]
[1765748199110,0.14145431,88600.0,88597.0,0.01128706]
[1765748199964,0.01128579,88607.0,88601.0,0.01128655]
[1765748200133,0.01128528,88611.0,88607.0,0.01128579]
[1765748200451,0.01128502,88613.0,88608.0,0.23699643]
[1765748200600,0.01128502,88613.0,88610.0,0.0112854]
[1765748201000,0.01128477,88615.0,88611.0,0.01128528]
[1765748202120,0.01128438,88618.0,88613.0,0.01128502]
[1765748202762,0.002,88615.0,88613.0,0.01128502]
[1765748203192,0.01128451,88617.0,88613.0,0.01128502]
[1765748203345,0.01128451,88617.0,88613.0,0.01228502]
[1765748203756,0.01128451,88617.0,88613.0,0.01128502]
[1765748203965,0.002,88615.0,88613.0,0.01228502]
[1765748204146,0.004,88615.0,88613.0,0.01228502]
[1765748204550,0.004,88615.0,88613.0,0.03494502]
[1765748205171,0.002,88615.0,88613.0,0.03394502]
[1765748205475,0.01128464,88616.0,88613.0,0.03494502]
[1765748205689,0.01128464,88616.0,88613.0,0.03394502]
[1765748206087,0.22769575,88615.0,88613.0,0.02366]
[1765748206305,0.23698052,88615.0,88609.0,0.01128553]
[1765748206823,0.01128502,88613.0,88609.0,0.01128553]
[1765748207835,0.01128553,88609.0,88606.0,0.01243]
[1765748208054,0.01128528,88611.0,88607.0,0.01128579]
[1765748208467,0.0112854,88610.0,88607.0,0.01128579]
[1765748209791,0.0112854,88610.0,88607.0,0.01228579]
[1765748209989,0.0122854,88610.0,88607.0,0.01228579]
[1765748211108,0.001,88610.0,88607.0,0.01228579]
[1765748211733,0.23799436,88610.0,88607.0,0.001]
[1765748214121,0.001,88610.0,88608.0,0.22571325]
[1765748214341,0.001,88610.0,88608.0,0.24837325]
[1765748214551,0.001,88610.0,88607.0,0.001]
[1765748214552,0.23799456,88610.0,88607.0,0.001]
[1765748215001,0.23799456,88610.0,88605.0,0.01128604]
[1765748215212,0.01128553,88609.0,88605.0,0.01128604]
[1765748216153,0.01128553,88609.0,88607.0,0.001]
[1765748216572,0.01128553,88609.0,88605.0,0.01128604]
[1765748216773,0.01228553,88609.0,88605.0,0.01128604]
[1765748216997,0.01128553,88609.0,88605.0,0.01128604]
[1765748217918,0.01128553,88609.0,88605.0,0.01228604]
[1765748218414,0.01228553,88609.0,88605.0,0.01228604]
[1765748218621,0.01128553,88609.0,88606.0,0.01128591]
[1765748218858,0.01228553,88609.0,88606.0,0.01128591]
[1765748219669,0.01128553,88609.0,88606.0,0.01128591]
[1765748219849,0.01128553,88609.0,88606.0,0.01228591]
[1765748220053,0.01228553,88609.0,88606.0,0.01228591]
[1765748220200,0.01228553,88609.0,88606.0,0.001]
[1765748221239,0.2257158,88607.0,88606.0,0.001]
[1765748222480,0.2267158,88607.0,88606.0,0.001]
[1765748222700,0.23701245,88603.0,88599.0,0.0112868]
[1765748223307,0.01128642,88602.0,88597.0,0.23702743]
[1765748223700,0.01128642,88602.0,88597.0,0.25961743]
[1765748224011,0.01128668,88600.0,88597.0,0.01128706]
[1765748224889,0.01128668,88600.0,88599.0,0.002]
[1765748225285,0.01128668,88600.0,88597.0,0.01128706]
[1765748225489,0.01128668,88600.0,88597.0,0.01428706]
[1765748225695,0.01228668,88600.0,88597.0,0.01428706]
[1765748225894,0.01228668,88600.0,88599.0,0.001]
[1765748226094,0.22573618,88599.0,88597.0,0.003]
[1765748226528,0.22573618,88599.0,88597.0,0.005]
[1765748226753,0.22573618,88599.0,88597.0,0.003]
[1765748227560,0.23703395,88595.0,88592.0,0.0237177]
[1765748227764,0.23703395,88595.0,88592.0,0.01243]
[1765748228297,0.01128706,88597.0,88594.0,0.01128744]
[1765748228443,0.01128693,88598.0,88594.0,0.01128744]
[1765748228655,0.01128655,88601.0,88597.0,0.002]
[1765748228858,0.01128655,88601.0,88595.0,0.03434731]
[1765748229069,0.22572654,88603.0,88599.0,0.0112868]
[1765748229271,0.23701283,88603.0,88599.0,0.0112868]
[1765748229910,0.001,88601.0,88599.0,0.0112868]
[1765748230078,0.23701283,88603.0,88599.0,0.0112868]
[1765748230281,0.01128629,88603.0,88600.0,0.01128668]
[1765748230866,0.01128642,88602.0,88599.0,0.0112868]
[1765748231074,0.01128642,88602.0,88599.0,0.0122868]
[1765748231515,0.001,88603.0,88602.0,0.01128642]
[1765748231894,0.01128591,88606.0,88603.0,0.01128629]
[1765748232107,0.01128591,88606.0,88603.0,0.03434629]
[1765748232294,0.01128591,88606.0,88603.0,0.01128629]
[1765748232698,0.0112854,88610.0,88607.0,0.01128579]
[1765748232891,0.01146,88609.0,88605.0,0.25292693]
[1765748233448,0.01146,88609.0,88606.0,0.01128591]
[1765748233889,0.0112854,88610.0,88606.0,0.01128591]
[1765748234286,0.0112854,88610.0,88607.0,0.01128579]
[1765748234648,0.04037056,88611.0,88608.0,0.01128566]
[1765748235454,0.001,88609.0,88608.0,0.01128566]
[1765748235676,0.01228528,88611.0,88608.0,0.01128566]
[1765748236021,0.04617073,88611.0,88608.0,0.01128566]
[1765748236221,0.04717073,88611.0,88608.0,0.01128566]
[1765748236374,0.04617073,88611.0,88608.0,0.01128566]
[1765748236786,0.001,88609.0,88606.0,0.01128591]
[1765748236981,0.0112854,88610.0,88606.0,0.01128591]
[1765748237190,0.01228553,88609.0,88606.0,0.01128591]
[1765748237941,0.01128553,88609.0,88606.0,0.01128591]
[1765748238142,0.01128553,88609.0,88606.0,0.01228591]
[1765748238755,0.01128553,88609.0,88606.0,0.001]
[1765748238969,0.22571325,88608.0,88606.0,0.001]
[1765748239940,0.01128617,88604.0,88601.0,0.01128655]
[1765748240487,0.01128642,88602.0,88597.0,0.01128706]
[1765748240846,0.01128668,88600.0,88598.0,0.02306]
[1765748241253,0.01128668,88600.0,88597.0,0.01128706]
[1765748242238,0.01128668,88600.0,88598.0,0.001]
[1765748242432,0.01128655,88601.0,88597.0,0.01128706]
[1765748242778,0.01128668,88600.0,88597.0,0.002]
[1765748242982,0.01128706,88597.0,88594.0,0.01128744]
[1765748243520,0.01128668,88600.0,88595.0,0.01128731]
[1765748243918,0.01228668,88600.0,88597.0,0.002]
[1765748244268,0.01228668,88600.0,88595.0,0.03434731]
[1765748244474,0.01128668,88600.0,88595.0,0.03434731]
[1765748244675,0.01228668,88600.0,88596.0,0.01128719]
[1765748244989,0.01228668,88600.0,88597.0,0.002]
[1765748245132,0.01228668,88600.0,88596.0,0.01128719]
[1765748245538,0.01128693,88598.0,88595.0,0.02506]
[1765748245866,0.01128693,88598.0,88595.0,0.001]
[1765748246051,0.01128693,88598.0,88594.0,0.01128744]
[1765748246255,0.01128706,88597.0,88596.0,0.001]
[1765748247369,0.01128706,88597.0,88594.0,0.03427744]
[1765748247748,0.01128706,88597.0,88595.0,0.002]
[1765748247981,0.001,88598.0,88595.0,0.01228731]
[1765748248185,0.001,88598.0,88597.0,0.22574127]
[1765748248383,0.001,88598.0,88597.0,0.24208127]
[1765748248601,0.001,88598.0,88597.0,0.26507127]
[1765748249059,0.01128604,88605.0,88601.0,0.23701757]
[1765748249293,0.01128629,88603.0,88600.0,0.22573363]
[1765748249524,0.01128617,88604.0,88601.0,0.02299]
[1765748249727,0.01128579,88607.0,88602.0,0.23701495]
[1765748250654,0.01128579,88607.0,88603.0,0.01128629]
[1765748250803,0.01228579,88607.0,88603.0,0.01128629]
[1765748251039,0.001,88605.0,88603.0,0.01128629]
[1765748251208,0.01228579,88607.0,88603.0,0.01128629]
[1765748251619,0.01428579,88607.0,88603.0,0.01128629]
[1765748251815,0.01228579,88607.0,88603.0,0.01128629]
[1765748252049,0.01128579,88607.0,88603.0,0.01128629]
[1765748252250,0.002,88605.0,88603.0,0.01128629]
[1765748252467,0.01228579,88607.0,88603.0,0.01128629]
[1765748253110,0.01128579,88607.0,88603.0,0.01128629]
[1765748253532,0.01128579,88607.0,88601.0,0.04586655]
[1765748253533,0.22672145,88605.0,88601.0,0.04586655]
[1765748253734,0.22572599,88603.0,88601.0,0.01159]
[1765748254412,0.23701791,88601.0,88597.0,0.03543706]
[1765748254732,0.23701791,88601.0,88597.0,0.01128706]
[1765748254894,0.23701791,88601.0,88598.0,0.02415]
[1765748255649,0.01128668,88600.0,88598.0,0.02415]
[1765748256227,0.01128668,88600.0,88598.0,0.02515]
[1765748256431,0.22573618,88599.0,88598.0,0.001]
[1765748256638,0.01128731,88595.0,88592.0,0.0237177]
[1765748256990,0.0112868,88599.0,88594.0,0.02680744]
[1765748257213,0.01128655,88601.0,88598.0,0.01128693]
[1765748257419,0.001,88600.0,88598.0,0.01128693]
[1765748257625,0.01128655,88601.0,88598.0,0.01128693]
[1765748258220,0.01128655,88601.0,88597.0,0.01128706]
[1765748258427,0.01128655,88601.0,88598.0,0.001]
[1765748258654,0.001,88600.0,88598.0,0.001]
[1765748259066,0.001,88600.0,88597.0,0.01128706]
[1765748259225,0.001,88600.0,88598.0,0.001]
[1765748259817,0.01128655,88601.0,88597.0,0.01128706]
[1765748260113,0.01228655,88601.0,88598.0,0.01228693]
[1765748260357,0.01128655,88601.0,88598.0,0.01228693]
[1765748260757,0.001,88600.0,88598.0,0.01228693]
[1765748260953,0.01128655,88601.0,88598.0,0.01228693]
[1765748261156,0.01128655,88601.0,88597.0,0.03543706]
[1765748261361,0.01228655,88601.0,88598.0,0.01128693]
[1765748261534,0.01128655,88601.0,88598.0,0.01128693]
[1765748261936,0.001,88600.0,88598.0,0.01128693]
[1765748263015,0.001,88600.0,88598.0,0.01228693]
[1765748263213,0.01128655,88601.0,88598.0,0.01228693]
[1765748263622,0.01228655,88601.0,88598.0,0.01228693]
[1765748263818,0.01128655,88601.0,88598.0,0.01228693]
[1765748264029,0.001,88600.0,88598.0,0.01228693]
[1765748264236,0.001,88600.0,88598.0,0.01128693]
[1765748264470,0.01128655,88601.0,88598.0,0.01128693]
[1765748264675,0.01228655,88601.0,88598.0,0.01228693]
[1765748265199,0.01228655,88601.0,88598.0,0.01128693]
[1765748265442,0.01128655,88601.0,88598.0,0.01128693]
[1765748265644,0.01128655,88601.0,88598.0,0.01228693]
[1765748266183,0.23702009,88601.0,88598.0,0.001]
[1765748266788,0.001,88600.0,88598.0,0.001]
[1765748267023,0.23702009,88601.0,88598.0,0.001]
[1765748267209,0.22573618,88599.0,88598.0,0.001]
[1765748267760,0.23702894,88597.0,88594.0,0.01290031]
[1765748267995,0.23702894,88597.0,88594.0,0.03705031]
[1765748268387,0.01128706,88597.0,88594.0,0.01290031]
[1765748268584,0.01128706,88597.0,88595.0,0.02415]
[1765748268785,0.01228706,88597.0,88595.0,0.02415]
[1765748270286,0.01128706,88597.0,88595.0,0.02415]
[1765748270482,0.01228706,88597.0,88595.0,0.02515]
[1765748270715,0.01228706,88597.0,88595.0,0.02615]
[1765748271639,0.01228706,88597.0,88595.0,0.002]
[1765748271842,0.001,88597.0,88596.0,0.03967]
[1765748273299,0.0112868,88599.0,88596.0,0.05095719]
[1765748273595,0.0112868,88599.0,88596.0,0.05195719]
[1765748274040,0.0112868,88599.0,88596.0,0.05095719]
[1765748274452,0.0112868,88599.0,88596.0,0.05195719]
[1765748274739,0.01128668,88600.0,88596.0,0.05195719]
[1765748276356,0.01128668,88600.0,88596.0,0.05095719]
[1765748276574,0.01128668,88600.0,88596.0,0.05195719]
[1765748278021,0.01128668,88600.0,88596.0,0.05357006]
[1765748279095,0.01128668,88600.0,88597.0,0.02422]
[1765748279301,0.01128617,88604.0,88599.0,0.0267268]
[1765748279713,0.01128617,88604.0,88599.0,0.0509468]
[1765748280111,0.01128629,88603.0,88599.0,0.0509468]
[1765748280315,0.001,88600.0,88599.0,0.0509468]
[1765748280532,0.01128642,88602.0,88599.0,0.0267268]
[1765748281215,0.01128642,88602.0,88599.0,0.01544]
[1765748281417,0.001,88604.0,88601.0,0.03802655]
[1765748281622,0.22573363,88600.0,88599.0,0.001]
[1765748282500,0.22575911,88590.0,88589.0,0.03666]
[1765748282693,0.22575911,88590.0,88573.0,0.2258015]
[1765748282694,0.01128948,88578.0,88572.0,0.0113]
[1765748282819,0.01128948,88578.0,88568.0,0.02259075]
[1765748282820,0.23709813,88571.0,88568.0,0.0113]
[1765748283037,0.23710572,88569.0,88568.0,8.282e-05]
[1765748285692,0.01129063,88569.0,88568.0,8.282e-05]
[1765748285892,0.01429063,88569.0,88568.0,0.00108282]
[1765748287959,0.003,88569.0,88568.0,0.00108282]
[1765748290722,0.22881264,88569.0,88568.0,0.00108282]
[1765748296038,0.003,88569.0,88568.0,0.00108282]
[1765748296237,0.003,88569.0,88568.0,0.04235569]
[1765748298959,0.003,88569.0,88568.0,0.15475569]
[1765748299199,0.003,88569.0,88568.0,0.04235569]
[1765748299408,0.002,88569.0,88568.0,0.04235569]
[1765748299607,0.01128973,88576.0,88573.0,0.01129012]
[1765748299806,0.01128973,88576.0,88573.0,0.01290299]
[1765748299979,0.01128973,88576.0,88573.0,0.03712299]
[1765748300394,0.01128973,88576.0,88574.0,0.02422]
[1765748301397,0.01328973,88576.0,88574.0,0.02422]
[1765748301810,0.01128973,88576.0,88574.0,0.02422]
[1765748301996,0.01328973,88576.0,88574.0,0.02422]
[1765748302230,0.01328973,88576.0,88568.0,0.02430282]
[1765748302231,0.01129012,88573.0,88568.0,0.02430282]
[1765748302375,0.01129012,88573.0,88568.0,0.25172854]
[1765748302798,0.23709278,88573.0,88569.0,0.03551063]
[1765748303484,0.01129012,88573.0,88569.0,0.03551063]
[1765748303907,0.22580754,88571.0,88568.0,0.00169569]
[1765748304113,0.01129024,88572.0,88568.0,0.00169569]
[1765748304356,0.01129024,88572.0,88568.0,0.00269569]
[1765748304778,0.01129024,88572.0,88569.0,0.01129063]
[1765748304954,0.22579734,88575.0,88569.0,0.01129063]
[1765748304955,0.2370872,88575.0,88570.0,0.23709993]
[1765748305137,0.01128986,88575.0,88571.0,0.03551037]
[1765748305336,0.01128986,88575.0,88571.0,0.01129037]
[1765748305561,0.01128986,88575.0,88572.0,0.02422]
[1765748305941,0.01128973,88576.0,88572.0,0.03551024]
[1765748306164,0.01228986,88575.0,88572.0,0.03551024]
[1765748306584,0.001,88575.0,88572.0,0.26131513]
[1765748307176,0.001,88575.0,88574.0,0.22579989]
[1765748307371,0.0112891,88581.0,88578.0,0.01128948]
[1765748307748,0.01128935,88579.0,88576.0,0.01133]
[1765748308185,0.01128935,88579.0,88576.0,0.03437]
[1765748308789,0.2370765,88579.0,88578.0,0.001]
[1765748309011,0.2370765,88579.0,88576.0,0.03437]
[1765748309198,0.2370765,88579.0,88576.0,0.01133]
[1765748309398,0.01128961,88577.0,88576.0,0.001]
[1765748309646,0.23708185,88577.0,88576.0,0.001]
[1765748309786,0.01128961,88577.0,88576.0,0.001]
[1765748310377,0.23708185,88577.0,88576.0,0.001]